fUST/lending_fUST_20260604
["ID","MTS","AMOUNT","RATE_DAILY","PERIOD"]
[423985118,1780535452000,-193.222666,0.00019178,2]
[423985117,1780535452000,-367.643309,0.00019178,2]
[423985114,1780535452000,-193.222666,0.00019178,2]
[423985110,1780535452000,-193.222666,0.00019178,2]
[423985109,1780535452000,-367.643308,0.00019178,2]
[423985111,1780535452000,-367.643308,0.00019178,2]
[423985108,1780535452000,-193.222666,0.00019178,2]
[423985105,1780535452000,-193.222666,0.00019178,2]
[423985104,1780535452000,-367.643308,0.00019178,2]
[423985103,1780535452000,-193.222666,0.00019178,2]
[423985101,1780535452000,-193.222666,0.00019178,2]
[423985106,1780535452000,-193.222666,0.00019178,2]
[423985163,1780535453000,-152.807,0.00019699,2]
[423985174,1780535453000,-1088.07,0.00019726,2]
[423985166,1780535453000,-175.8,0.00019704,2]
[423985169,1780535453000,-598.93,0.00019726,2]
[423985168,1780535453000,-727.21,0.00019726,2]
[423985172,1780535453000,-500.0,0.00019726,2]
[423985175,1780535453000,-636.04,0.00019726,2]
[423985184,1780535453000,-687.1,0.00019726,2]
[423985178,1780535453000,-541.8,0.00019726,2]
[423985177,1780535453000,-745.9,0.00019726,2]
[423985176,1780535453000,-710.59,0.00019726,2]
[423985180,1780535453000,-555.17,0.00019726,2]
[423985179,1780535453000,-2470.54,0.00019726,2]
[423985164,1780535453000,-1415.0,0.00019699,2]
[423985173,1780535453000,-2676.5,0.00019726,2]
[423985165,1780535453000,-1836.0,0.00019699,2]
[423985157,1780535453000,-824.0,0.0001968,2]
[423985161,1780535453000,-150.93,0.00019699,2]
[423985181,1780535453000,-1627.14,0.00019726,2]
[423985158,1780535453000,-220.206,0.00019699,2]
[423985149,1780535453000,-564.35,0.00019452,2]
[423985154,1780535453000,-10884.77407259,0.000196,2]
[423985150,1780535453000,-1130.97,0.00019452,2]
[423985152,1780535453000,-824.0,0.00019495,2]
[423985167,1780535453000,-824.0,0.00019725,2]
[423985151,1780535453000,-680.27,0.00019452,2]
[423985153,1780535453000,-3989.54863079,0.00019568,3]
[423985160,1780535453000,-150.362,0.00019699,2]
[423985170,1780535453000,-1198.05,0.00019726,2]
[423985171,1780535453000,-926.41,0.00019726,2]
[423985159,1780535453000,-155.393,0.00019699,2]
[423985162,1780535453000,-250.0,0.00019699,2]
[423985155,1780535453000,-824.0,0.0001968,2]
[423985185,1780535453000,-2158.51,0.00019726,2]
[423985156,1780535453000,-824.0,0.0001968,2]
[423985183,1780535453000,-11303.85,0.00019726,2]
[423985206,1780535453000,-9379.47237764,0.00010959,2]
[423985204,1780535453000,-2556.23264631,0.0001045,2]
[423985208,1780535453000,-688.21,0.0001726,2]
[423985210,1780535453000,-688.21,0.00017808,2]
[423985209,1780535453000,-688.21,0.00017534,2]
[423985211,1780535453000,-688.21,0.00018082,2]
[423985207,1780535453000,-688.21,0.00016986,2]
[423985212,1780535453000,-688.21,0.00018356,2]
[423985215,1780535453000,-688.21,0.00019178,2]
[423985217,1780535453000,-688.21,0.00019726,2]
[423985214,1780535453000,-688.21,0.00018904,2]
[423985218,1780535453000,-14550.21762237,0.00019963,2]
[423985216,1780535453000,-688.21,0.00019452,2]
[423985219,1780535453000,-44065.0708418,0.00019963,2]
[423985213,1780535453000,-688.21,0.0001863,2]
[423985203,1780535453000,-326.43538037,0.0001045,2]
[423985205,1780535453000,-5221.97253806,0.00010959,2]
[423985201,1780535453000,-439576.30107068,0.00019963,2]
[423985186,1780535453000,-778.38,0.00019726,2]
[423985194,1780535453000,-557.945084,0.00019796,2]
[423985190,1780535453000,-1130.97,0.00019726,2]
[423985192,1780535453000,-160.0,0.00019796,2]
[423985196,1780535453000,-245.429146,0.00019796,2]
[423985188,1780535453000,-519.26,0.00019726,2]
[423985202,1780535453000,-2117.33197332,0.0001045,2]
[423985187,1780535453000,-835.73,0.00019726,2]
[423985189,1780535453000,-564.35,0.00019726,2]
[423985195,1780535453000,-160.0,0.00019796,2]
[423985191,1780535453000,-680.27,0.00019726,2]
[423985198,1780535453000,-10884.77407259,0.000198,2]
[423985199,1780535453000,-824.0,0.00019815,2]
[423985197,1780535453000,-330.858292,0.00019796,2]
[423985200,1780535453000,-824.0,0.00019873,2]
[423985193,1780535453000,-358.972542,0.00019796,2]
[423985182,1780535453000,-1169.27,0.00019726,2]
[423985234,1780535963000,156.10915149,0.00023602,110]
[423985243,1780536108000,-795.80130427,0.0001,2]
[423985244,1780536111000,-193.19999999,0.0001,2]
[423985245,1780536113000,-500.0,0.0001,2]
[423985247,1780536114000,-500.0,0.0001,2]
[423985248,1780536117000,-209.35374063,0.00013559,7]
[423985260,1780536137000,-313.13097928,0.0001,2]
[423985259,1780536137000,-186.86902072,0.0001,2]
[423985301,1780536543000,-580.29848,9.226e-05,2]
[423985302,1780536546000,-397.85125961,9.134e-05,2]
[423985303,1780536550000,-426.15119389,9.134e-05,2]
[423985304,1780536552000,-156.9175465,9.134e-05,2]
[423985489,1780536596000,-151.0,9.134e-05,2]
[423985493,1780536611000,-151.0,9.134e-05,2]
[423985824,1780536638000,-300.0,0.00010199,2]
[423985822,1780536638000,-300.0,0.00010199,2]
[423985825,1780536638000,-300.0,0.00010199,2]
[423985823,1780536638000,-300.0,0.00010199,2]
[423985826,1780536638000,-300.0,0.00010199,2]
[423985837,1780536638000,-600.0,0.00010199,2]
[423985832,1780536638000,-300.0,0.00010199,2]
[423985839,1780536638000,-300.0,0.0001025,2]
[423985821,1780536638000,-151.0,0.00010166,2]
[423985828,1780536638000,-300.0,0.00010199,2]
[423985827,1780536638000,-300.0,0.00010199,2]
[423985818,1780536638000,-200.88296593,0.0001,2]
[423985813,1780536638000,-300.0,9.318e-05,2]
[423985819,1780536638000,-11483.14549635,0.0001,2]
[423985820,1780536638000,-1862.27151961,0.0001,2]
[423985814,1780536638000,-1200.0,9.318e-05,2]
[423985816,1780536638000,-1034.63546889,9.701e-05,2]
[423985815,1780536638000,-231.9673678,9.604e-05,7]
[423985807,1780536638000,-4419.70152,9.226e-05,2]
[423985812,1780536638000,-300.0,9.318e-05,2]
[423985810,1780536638000,-300.0,9.318e-05,2]
[423985808,1780536638000,-420.0,9.318e-05,2]
[423985805,1780536638000,-2999.61115575,9.043e-05,2]
[423985806,1780536638000,-1148.70395324,9.134e-05,2]
[423985800,1780536638000,-2000.38884425,9.043e-05,2]
[423985817,1780536638000,-9353.7630634,0.0001,2]
[423985830,1780536638000,-300.0,0.00010199,2]
[423985838,1780536638000,-420.0,0.0001025,2]
[423985829,1780536638000,-300.0,0.00010199,2]
[423985833,1780536638000,-300.0,0.00010199,2]
[423985856,1780536638000,-500.0,0.00011496,2]
[423985857,1780536638000,-500.0,0.00011496,2]
[423985855,1780536638000,-500.0,0.00011496,2]
[423985854,1780536638000,-500.0,0.00011496,2]
[423985858,1780536638000,-199.37951741,0.00011496,2]
[423985859,1780536638000,-500.0,0.00011496,2]
[423985860,1780536638000,-500.0,0.00011496,2]
[423985862,1780536638000,-500.0,0.00011496,2]
[423985861,1780536638000,-500.0,0.00011496,2]
[423985853,1780536638000,-500.0,0.00011496,2]
[423985847,1780536638000,-500.0,0.00011496,2]
[423985848,1780536638000,-500.0,0.00011496,2]
[423985852,1780536638000,-525.80205888,0.00011496,2]
[423985846,1780536638000,-1439.35656552,0.00011422,2]
[423985844,1780536638000,-271.0,0.00011275,2]
[423985834,1780536638000,-300.0,0.00010199,2]
[423985835,1780536638000,-300.0,0.00010199,2]
[423985836,1780536638000,-300.0,0.00010199,2]
[423985843,1780536638000,-720.0,0.00011219,2]
[423985842,1780536638000,-212.9378112,0.00010413,2]
[423985840,1780536638000,-300.0,0.0001025,2]
[423985831,1780536638000,-300.0,0.00010199,2]
[423985850,1780536638000,-155.01363597,0.00011496,2]
[423985851,1780536638000,-500.0,0.00011496,2]
[423985849,1780536638000,-191.94974234,0.00011496,2]
[423985845,1780536638000,-2351.0,0.00011275,2]
[423985841,1780536638000,-1680.0,0.0001025,2]
[423985902,1780536639000,-869.2,0.00012329,2]
[423985906,1780536639000,-324.5531,0.00012524,2]
[423985907,1780536639000,-250.0,0.00012602,2]
[423985904,1780536639000,-864.0,0.00012341,2]
[423985899,1780536639000,-250.32,0.00012329,2]
[423985895,1780536639000,-519.07,0.00012329,2]
[423985901,1780536639000,-173.84,0.00012329,2]
[423985891,1780536639000,-65910.00694687,0.00012,2]
[423985897,1780536639000,-360.47,0.00012329,2]
[423985898,1780536639000,-300.39,0.00012329,2]
[423985903,1780536639000,-500.0,0.00012329,2]
[423985900,1780536639000,-208.6,0.00012329,2]
[423985914,1780536639000,-500.0,0.00013698,2]
[423985922,1780536639000,-541.91672636,0.00013698,2]
[423985908,1780536639000,-1439.3565655,0.00012867,2]
[423985909,1780536639000,-226.91,0.00013372,2]
[423985912,1780536639000,-500.0,0.00013698,2]
[423985913,1780536639000,-500.0,0.00013698,2]
[423985911,1780536639000,-1000.0,0.00013575,2]
[423985910,1780536639000,-160.566907,0.00013397,2]
[423985915,1780536639000,-500.0,0.00013698,2]
[423985916,1780536639000,-366.89755947,0.00013698,2]
[423985927,1780536639000,-500.0,0.00013698,2]
[423985917,1780536639000,-500.0,0.00013698,2]
[423985920,1780536639000,-500.0,0.00013698,2]
[423985918,1780536639000,-500.0,0.00013698,2]
[423985894,1780536639000,-622.89,0.00012329,2]
[423985905,1780536639000,-2340.0,0.00012402,2]
[423985896,1780536639000,-432.56,0.00012329,2]
[423985887,1780536639000,-151.34,0.00012,2]
[423985892,1780536639000,-153.73,0.00012,2]
[423985919,1780536639000,-500.0,0.00013698,2]
[423985863,1780536639000,-500.0,0.00011496,2]
[423985864,1780536639000,-500.0,0.00011496,2]
[423985869,1780536639000,-500.0,0.00011496,2]
[423985866,1780536639000,-500.0,0.00011496,2]
[423985867,1780536639000,-500.0,0.00011496,2]
[423985868,1780536639000,-531.64465658,0.00011496,2]
[423985872,1780536639000,-500.0,0.00011496,2]
[423985870,1780536639000,-500.0,0.00011496,2]
[423985871,1780536639000,-500.0,0.00011496,2]
[423985865,1780536639000,-500.0,0.00011496,2]
[423985875,1780536639000,-500.0,0.00011496,2]
[423985876,1780536639000,-500.0,0.00011496,2]
[423985893,1780536639000,-747.46,0.00012329,2]
[423985873,1780536639000,-500.0,0.00011496,2]
[423985878,1780536639000,-500.0,0.00011496,2]
[423985888,1780536639000,-32827.75191246,0.00012,2]
[423985889,1780536639000,-1441.70641936,0.00012,2]
[423985884,1780536639000,-500.0,0.00011999,2]
[423985877,1780536639000,-500.0,0.00011496,2]
[423985881,1780536639000,-42230.12888899,0.000115,2]
[423985883,1780536639000,-500.0,0.00011772,2]
[423985882,1780536639000,-196.444376,0.00011522,2]
[423985879,1780536639000,-500.0,0.00011496,2]
[423985880,1780536639000,-500.0,0.00011498,2]
[423985885,1780536639000,-172.86513403,0.00011999,2]
[423985886,1780536639000,-534.19430182,0.00011999,2]
[423985890,1780536639000,-9259.80131239,0.00012,2]
[423985874,1780536639000,-500.0,0.00011496,2]
[423985926,1780536639000,-500.0,0.00013698,2]
[423985939,1780536639000,-500.0,0.00013698,2]
[423985924,1780536639000,-500.0,0.00013698,2]
[423985967,1780536639000,-500.0,0.00013971,2]
[423985956,1780536639000,-500.0,0.00013971,2]
[423985971,1780536639000,-500.0,0.00013971,2]
[423985957,1780536639000,-500.0,0.00013971,2]
[423985969,1780536639000,-500.70175716,0.00013971,2]
[423985973,1780536639000,-500.0,0.00013971,2]
[423985972,1780536639000,-515.44004021,0.00013971,2]
[423985958,1780536639000,-253.62,0.00013971,2]
[423985959,1780536639000,-500.0,0.00013971,2]
[423985961,1780536639000,-384.58209538,0.00013971,2]
[423985960,1780536639000,-500.0,0.00013971,2]
[423985970,1780536639000,-500.0,0.00013971,2]
[423985974,1780536639000,-289.82,0.00013971,2]
[423985976,1780536639000,-500.0,0.00013971,2]
[423985977,1780536639000,-500.0,0.00013971,2]
[423985975,1780536639000,-500.0,0.00013971,2]
[423985978,1780536639000,-500.0,0.00013971,2]
[423985979,1780536639000,-500.0,0.00013971,2]
[423985983,1780536639000,-625.05602469,0.00013971,2]
[423985981,1780536639000,-500.0,0.00013971,2]
[423985980,1780536639000,-500.0,0.00013971,2]
[423985982,1780536639000,-500.0,0.00013971,2]
[423985984,1780536639000,-500.0,0.00013971,2]
[423985986,1780536639000,-500.0,0.00013971,2]
[423985985,1780536639000,-500.0,0.00013971,2]
[423985987,1780536639000,-500.0,0.00013971,2]
[423985921,1780536639000,-500.0,0.00013698,2]
[423985968,1780536639000,-500.0,0.00013971,2]
[423985965,1780536639000,-500.0,0.00013971,2]
[423985989,1780536639000,-500.0,0.00013971,2]
[423985951,1780536639000,-255.205446,0.00013699,2]
[423985950,1780536639000,-500.0,0.00013698,2]
[423985923,1780536639000,-500.0,0.00013698,2]
[423985925,1780536639000,-500.0,0.00013698,2]
[423985929,1780536639000,-500.0,0.00013698,2]
[423985932,1780536639000,-500.0,0.00013698,2]
[423985934,1780536639000,-500.0,0.00013698,2]
[423985933,1780536639000,-500.0,0.00013698,2]
[423985931,1780536639000,-500.0,0.00013698,2]
[423985941,1780536639000,-265.60215155,0.00013698,2]
[423985937,1780536639000,-500.0,0.00013698,2]
[423985938,1780536639000,-500.0,0.00013698,2]
[423985935,1780536639000,-500.0,0.00013698,2]
[423985940,1780536639000,-500.0,0.00013698,2]
[423985988,1780536639000,-500.0,0.00013971,2]
[423985928,1780536639000,-1195.57,0.00013698,2]
[423985930,1780536639000,-500.0,0.00013698,2]
[423985936,1780536639000,-500.0,0.00013698,2]
[423985954,1780536639000,-500.0,0.00013971,2]
[423985955,1780536639000,-258.2616663,0.00013971,2]
[423985945,1780536639000,-501.58601512,0.00013698,2]
[423985943,1780536639000,-500.0,0.00013698,2]
[423985953,1780536639000,-2992.5764286,0.00013699,2]
[423985946,1780536639000,-500.0,0.00013698,2]
[423985942,1780536639000,-500.0,0.00013698,2]
[423985949,1780536639000,-500.0,0.00013698,2]
[423985952,1780536639000,-1000.0,0.00013699,2]
[423985947,1780536639000,-500.0,0.00013698,2]
[423985948,1780536639000,-505.00376495,0.00013698,2]
[423985944,1780536639000,-502.63963102,0.00013698,2]
[423986036,1780536640000,-500.0,0.00013972,2]
[423986053,1780536640000,-500.0,0.00014244,2]
[423986029,1780536640000,-500.0,0.00013972,2]
[423986038,1780536640000,-500.0,0.00013972,2]
[423986040,1780536640000,-296.77187643,0.00013972,2]
[423986046,1780536640000,-500.0,0.00013972,2]
[423986042,1780536640000,-500.0,0.00013972,2]
[423986048,1780536640000,-209.35374063,0.00014237,7]
[423986044,1780536640000,-500.0,0.00013972,2]
[423986051,1780536640000,-500.0,0.00014244,2]
[423986050,1780536640000,-500.0,0.00014244,2]
[423986063,1780536640000,-500.0,0.00014244,2]
[423986059,1780536640000,-500.0,0.00014244,2]
[423986057,1780536640000,-500.0,0.00014244,2]
[423986061,1780536640000,-500.0,0.00014244,2]
[423986066,1780536640000,-500.0,0.00014244,2]
[423986065,1780536640000,-500.0,0.00014244,2]
[423986070,1780536640000,-500.0,0.00014244,2]
[423986068,1780536640000,-500.0,0.00014244,2]
[423986072,1780536640000,-500.0,0.00014244,2]
[423986074,1780536640000,-500.0,0.00014244,2]
[423986077,1780536640000,-500.0,0.00014244,2]
[423986034,1780536640000,-578.74102221,0.00013972,2]
[423986055,1780536640000,-606.56,0.00014244,2]
[423986033,1780536640000,-500.0,0.00013972,2]
[423986001,1780536640000,-500.0,0.00013972,2]
[423986015,1780536640000,-500.0,0.00013972,2]
[423986080,1780536640000,-500.0,0.00014244,2]
[423985990,1780536640000,-500.0,0.00013971,2]
[423985991,1780536640000,-510.71801634,0.00013971,2]
[423985992,1780536640000,-500.0,0.00013971,2]
[423985994,1780536640000,-500.0,0.00013971,2]
[423985996,1780536640000,-500.0,0.00013971,2]
[423985993,1780536640000,-500.0,0.00013971,2]
[423985995,1780536640000,-500.0,0.00013971,2]
[423985999,1780536640000,-355.94586294,0.00013971,2]
[423986000,1780536640000,-491.12894104,0.00013971,2]
[423985998,1780536640000,-500.0,0.00013971,2]
[423985997,1780536640000,-500.0,0.00013971,2]
[423986004,1780536640000,-500.0,0.00013972,2]
[423986002,1780536640000,-500.0,0.00013972,2]
[423986003,1780536640000,-500.0,0.00013972,2]
[423986010,1780536640000,-500.0,0.00013972,2]
[423986005,1780536640000,-500.0,0.00013972,2]
[423986007,1780536640000,-500.0,0.00013972,2]
[423986006,1780536640000,-500.0,0.00013972,2]
[423986021,1780536640000,-500.0,0.00013972,2]
[423986025,1780536640000,-500.0,0.00013972,2]
[423986023,1780536640000,-500.0,0.00013972,2]
[423986018,1780536640000,-1195.57,0.00013972,2]
[423986027,1780536640000,-500.0,0.00013972,2]
[423986012,1780536640000,-500.0,0.00013972,2]
[423986031,1780536640000,-500.0,0.00013972,2]
[423986084,1780536640000,-500.0,0.00014244,2]
[423986079,1780536640000,-920.5076,0.00014244,2]
[423986090,1780536640000,-500.0,0.00014244,2]
[423986113,1780536640000,-561.00238948,0.00014245,2]
[423986116,1780536640000,-500.0,0.00014245,2]
[423986119,1780536640000,-500.0,0.00014245,2]
[423986130,1780536640000,-1195.57,0.00014246,2]
[423986129,1780536640000,-500.0,0.00014246,2]
[423986131,1780536640000,-500.0,0.00014246,2]
[423986118,1780536640000,-270.94,0.00014245,2]
[423986122,1780536640000,-500.0,0.00014246,2]
[423986121,1780536640000,-234.09,0.00014245,2]
[423986120,1780536640000,-500.0,0.00014245,2]
[423986123,1780536640000,-500.0,0.00014246,2]
[423986117,1780536640000,-500.0,0.00014245,2]
[423986125,1780536640000,-500.0,0.00014246,2]
[423986126,1780536640000,-500.0,0.00014246,2]
[423986128,1780536640000,-500.0,0.00014246,2]
[423986132,1780536640000,-500.0,0.00014246,2]
[423986134,1780536640000,-500.0,0.00014246,2]
[423986133,1780536640000,-500.0,0.00014246,2]
[423986135,1780536640000,-500.0,0.00014246,2]
[423986138,1780536640000,-500.0,0.00014246,2]
[423986137,1780536640000,-500.0,0.00014246,2]
[423986136,1780536640000,-576.89351369,0.00014246,2]
[423986139,1780536640000,-500.0,0.00014246,2]
[423986091,1780536640000,-500.5668259,0.00014244,2]
[423986124,1780536640000,-500.0,0.00014246,2]
[423986111,1780536640000,-500.0,0.00014245,2]
[423986127,1780536640000,-500.0,0.00014246,2]
[423986112,1780536640000,-500.0,0.00014245,2]
[423986087,1780536640000,-500.0,0.00014244,2]
[423986106,1780536640000,-500.0,0.00014245,2]
[423986082,1780536640000,-500.0,0.00014244,2]
[423986086,1780536640000,-500.0,0.00014244,2]
[423986089,1780536640000,-500.0,0.00014244,2]
[423986088,1780536640000,-500.0,0.00014244,2]
[423986093,1780536640000,-500.0,0.00014245,2]
[423986104,1780536640000,-609.96,0.00014245,2]
[423986103,1780536640000,-500.0,0.00014245,2]
[423986096,1780536640000,-500.0,0.00014245,2]
[423986095,1780536640000,-500.0,0.00014245,2]
[423986097,1780536640000,-617.7,0.00014245,2]
[423986092,1780536640000,-500.0,0.00014245,2]
[423986107,1780536640000,-500.0,0.00014245,2]
[423986094,1780536640000,-500.0,0.00014245,2]
[423986101,1780536640000,-500.0,0.00014245,2]
[423986100,1780536640000,-247.28,0.00014245,2]
[423986098,1780536640000,-500.0,0.00014245,2]
[423986102,1780536640000,-500.0,0.00014245,2]
[423986105,1780536640000,-500.0,0.00014245,2]
[423986109,1780536640000,-500.0,0.00014245,2]
[423986114,1780536640000,-500.0,0.00014245,2]
[423986108,1780536640000,-185.28,0.00014245,2]
[423986110,1780536640000,-250.5,0.00014245,2]
[423986099,1780536640000,-500.0,0.00014245,2]
[423986115,1780536640000,-500.0,0.00014245,2]
[423986173,1780536641000,-500.0,0.00014519,2]
[423986174,1780536641000,-500.0,0.00014519,2]
[423986179,1780536641000,-500.0,0.00014519,2]
[423986175,1780536641000,-500.0,0.00014519,2]
[423986176,1780536641000,-298.49,0.00014519,2]
[423986180,1780536641000,-500.0,0.00014519,2]
[423986184,1780536641000,-500.0,0.00014519,2]
[423986172,1780536641000,-500.0,0.00014519,2]
[423986178,1780536641000,-500.0,0.00014519,2]
[423986182,1780536641000,-500.0,0.00014519,2]
[423986181,1780536641000,-500.0,0.00014519,2]
[423986185,1780536641000,-286.81,0.0001452,2]
[423986183,1780536641000,-487.82,0.00014519,2]
[423986187,1780536641000,-246.02,0.0001452,2]
[423986199,1780536641000,-162.0,0.00014603,3]
[423986194,1780536641000,-500.0,0.0001452,2]
[423986191,1780536641000,-1195.57,0.0001452,2]
[423986190,1780536641000,-500.0,0.0001452,2]
[423986186,1780536641000,-210.64,0.0001452,2]
[423986192,1780536641000,-500.0,0.0001452,2]
[423986195,1780536641000,-500.0,0.0001452,2]
[423986196,1780536641000,-500.0,0.0001452,2]
[423986189,1780536641000,-555.2696527,0.0001452,2]
[423986188,1780536641000,-500.0,0.0001452,2]
[423986198,1780536641000,-500.0,0.0001452,2]
[423986208,1780536641000,-500.0,0.00014792,2]
[423986209,1780536641000,-500.0,0.00014792,2]
[423986210,1780536641000,-500.37283738,0.00014792,2]
[423986200,1780536641000,-209.35374063,0.00014644,7]
[423986193,1780536641000,-278.41,0.0001452,2]
[423986177,1780536641000,-500.0,0.00014519,2]
[423986144,1780536641000,-500.0,0.00014518,2]
[423986163,1780536641000,-506.1583118,0.00014518,2]
[423986141,1780536641000,-1439.3565655,0.00014311,2]
[423986142,1780536641000,-299.90093701,0.00014356,2]
[423986140,1780536641000,-734.7192147,0.00014289,2]
[423986143,1780536641000,-500.0,0.00014518,2]
[423986145,1780536641000,-500.0,0.00014518,2]
[423986146,1780536641000,-500.0,0.00014518,2]
[423986154,1780536641000,-500.0,0.00014518,2]
[423986153,1780536641000,-500.0,0.00014518,2]
[423986151,1780536641000,-500.0,0.00014518,2]
[423986158,1780536641000,-500.0,0.00014518,2]
[423986156,1780536641000,-500.0,0.00014518,2]
[423986155,1780536641000,-920.5076,0.00014518,2]
[423986147,1780536641000,-643.98123436,0.00014518,2]
[423986157,1780536641000,-500.0,0.00014518,2]
[423986149,1780536641000,-161.32342463,0.00014518,2]
[423986152,1780536641000,-500.0,0.00014518,2]
[423986148,1780536641000,-500.0,0.00014518,2]
[423986150,1780536641000,-500.0,0.00014518,2]
[423986160,1780536641000,-500.0,0.00014518,2]
[423986159,1780536641000,-500.0,0.00014518,2]
[423986169,1780536641000,-500.0,0.00014519,2]
[423986161,1780536641000,-500.0,0.00014518,2]
[423986167,1780536641000,-500.0,0.00014519,2]
[423986170,1780536641000,-531.42,0.00014519,2]
[423986165,1780536641000,-500.0,0.00014519,2]
[423986164,1780536641000,-500.0,0.00014519,2]
[423986171,1780536641000,-630.76,0.00014519,2]
[423986168,1780536641000,-500.0,0.00014519,2]
[423986162,1780536641000,-500.0,0.00014518,2]
[423986166,1780536641000,-500.0,0.00014519,2]
[423986197,1780536641000,-500.0,0.0001452,2]
[423986236,1780536641000,-500.0,0.00015066,2]
[423986206,1780536641000,-500.0,0.00014792,2]
[423986239,1780536641000,-316.54022572,0.00015066,2]
[423986238,1780536641000,-500.0,0.00015066,2]
[423986240,1780536641000,-500.0,0.00015067,2]
[423986246,1780536641000,-500.0,0.00015068,2]
[423986242,1780536641000,-500.0,0.00015067,2]
[423986245,1780536641000,-1195.57,0.00015068,2]
[423986244,1780536641000,-169.31295862,0.00015068,2]
[423986243,1780536641000,-520.32,0.00015067,2]
[423986249,1780536641000,-500.0,0.00015068,2]
[423986260,1780536641000,-1195.57,0.00015342,2]
[423986261,1780536641000,-500.0,0.00015342,2]
[423986262,1780536641000,-486.23970261,0.00015342,2]
[423986248,1780536641000,-500.0,0.00015068,2]
[423986259,1780536641000,-310.08939762,0.00015341,2]
[423986254,1780536641000,-500.0,0.0001534,2]
[423986255,1780536641000,-500.0,0.0001534,2]
[423986251,1780536641000,-209.35374067,0.00015186,7]
[423986250,1780536641000,-200.985702,0.00015068,2]
[423986257,1780536641000,-500.0,0.00015341,2]
[423986258,1780536641000,-500.0,0.00015341,2]
[423986256,1780536641000,-500.0,0.0001534,2]
[423986253,1780536641000,-500.0,0.0001534,2]
[423986263,1780536641000,-175.99609684,0.00015342,2]
[423986264,1780536641000,-500.0,0.00015342,2]
[423986265,1780536641000,-500.0,0.00015614,2]
[423986266,1780536641000,-383.37,0.00015614,2]
[423986267,1780536641000,-500.0,0.00015614,2]
[423986268,1780536641000,-500.0,0.00015614,2]
[423986201,1780536641000,-599.02574357,0.00014792,2]
[423986247,1780536641000,-500.0,0.00015068,2]
[423986241,1780536641000,-500.0,0.00015067,2]
[423986252,1780536641000,-500.0,0.0001534,2]
[423986228,1780536641000,-500.0,0.00014794,2]
[423986237,1780536641000,-500.0,0.00015066,2]
[423986205,1780536641000,-500.0,0.00014792,2]
[423986202,1780536641000,-500.0,0.00014792,2]
[423986203,1780536641000,-500.0,0.00014792,2]
[423986204,1780536641000,-500.0,0.00014792,2]
[423986207,1780536641000,-500.0,0.00014792,2]
[423986212,1780536641000,-500.0,0.00014792,2]
[423986220,1780536641000,-500.0,0.00014793,2]
[423986221,1780536641000,-627.36563153,0.00014794,2]
[423986211,1780536641000,-500.0,0.00014792,2]
[423986213,1780536641000,-500.0,0.00014792,2]
[423986217,1780536641000,-317.68,0.00014793,2]
[423986222,1780536641000,-500.0,0.00014794,2]
[423986219,1780536641000,-500.0,0.00014793,2]